fUST/lending_fUST_20250707
["ID","MTS","AMOUNT","RATE_DAILY","PERIOD"]
[370039520,1751857840675,-500.0,0.00021992,2]
[370039522,1751857840685,-218.29461389,0.00021999,2]
[370039524,1751857840694,-2504.37544113,0.00022,2]
[370039526,1751857840704,-848.27993403,0.00022,7]
[370039528,1751857840714,-214.06929976,0.00022,7]
[370039530,1751857840724,-12584.46609586,0.00022,7]
[370039532,1751857840734,-460.0,0.00022005,2]
[370039533,1751857840744,-683.77,0.00022005,2]
[370039535,1751857840772,-460.0,0.00022014,2]
[370039537,1751857840782,-460.0,0.00022014,2]
[370039539,1751857840792,-460.0,0.00022014,2]
[370039541,1751857840802,-500.0,0.0002209,2]
[370039543,1751857840811,-2500.0,0.00022106,2]
[370039544,1751857840820,-1317.09131739,0.00022176,6]
[370039546,1751857840831,-500.0,0.00022188,2]
[370039548,1751857840841,-581.15,0.00022242,2]
[370039550,1751857840850,-238.14104758,0.00022242,2]
[370039552,1751857840859,-851.0,0.00022242,2]
[370039554,1751857840869,-460.0,0.00022279,2]
[370039556,1751857840879,-683.77,0.00022279,2]
[370039557,1751857840889,-500.0,0.00022286,2]
[370039559,1751857840899,-460.0,0.00022288,2]
[370039561,1751857840909,-460.0,0.00022288,2]
[370039563,1751857840923,-460.0,0.00022288,2]
[370039565,1751857840933,-5024.7,0.000223,7]
[370039567,1751857840942,-58689.44,0.000223,7]
[370039569,1751857840952,-1317.09131739,0.00022383,7]
[370039571,1751857840962,-500.0,0.00022384,2]
[370039573,1751857840972,-500.0,0.00022482,2]
[370039575,1751857840981,-581.15,0.00022516,2]
[370039577,1751857840991,-851.0,0.00022516,2]
[370039579,1751857841004,-460.0,0.00022553,2]
[370039580,1751857841014,-683.77,0.00022553,2]
[370039582,1751857841024,-460.0,0.00022562,2]
[370039584,1751857841034,-460.0,0.00022562,2]
[370039586,1751857841044,-460.0,0.00022562,2]
[370039588,1751857841053,-450.478,0.00022571,2]
[370039590,1751857841063,-587.0,0.00022573,2]
[370039592,1751857841075,-500.0,0.0002258,2]
[370039594,1751857841085,-1317.09131739,0.0002259,7]
[370039596,1751857841094,-588.21,0.000226,7]
[370039597,1751857841104,-338.228434,0.00022603,2]
[370039599,1751857841114,-2500.32412248,0.00022654,2]
[370039601,1751857841124,-500.0,0.00022678,2]
[370039603,1751857841134,-500.0,0.00022725,2]
[370039605,1751857841143,-500.0,0.00022725,2]
[370039607,1751857841152,-500.0,0.00022725,2]
[370039609,1751857841163,-500.0,0.00022776,2]
[370039611,1751857841173,-581.15,0.0002279,2]
[370039613,1751857841182,-851.0,0.0002279,2]
[370039614,1751857841192,-1317.09131739,0.00022797,7]
[370039616,1751857841202,-460.0,0.00022827,2]
[370039619,1751857841212,-683.77,0.00022827,2]
[370039621,1751857841223,-460.0,0.00022836,2]
[370039623,1751857841233,-460.0,0.00022836,2]
[370039625,1751857841243,-36146.58135723,0.00022851,2]
[370039627,1751857841252,-500.0,0.00022874,2]
[370039629,1751857841261,-1616.65391567,0.00022942,2]
[370039631,1751857841270,-150.102,0.00022951,2]
[370039633,1751857841280,-150.0,0.00022951,2]
[370039635,1751857841289,-967.0,0.00022951,2]
[370039637,1751857841298,-646.0,0.00022951,2]
[370039639,1751857841308,-2153.0,0.00022951,2]
[370039641,1751857841318,-500.0,0.00022972,2]
[370039643,1751857841327,-160.0,0.00023,2]
[370039645,1751857841337,-1317.09131739,0.00023003,8]
[370039647,1751857841347,-581.15,0.00023064,2]
[370039649,1751857841356,-851.0,0.00023064,2]
[370039651,1751857841366,-500.0,0.0002307,2]
[370039653,1751857841376,-460.0,0.00023101,2]
[370039655,1751857841386,-683.77,0.00023101,2]
[370039657,1751857841396,-460.0,0.0002311,2]
[370039659,1751857841405,-460.0,0.0002311,2]
[370039661,1751857841415,-500.0,0.00023168,2]
[370039663,1751857841425,-172.91686704,0.00023204,2]
[370039665,1751857841434,-1317.09131739,0.0002321,8]
[370039667,1751857841444,-500.0,0.00023266,2]
[370039669,1751857841454,-500.0,0.00023273,2]
[370039671,1751857841464,-600.0,0.00023273,2]
[370039673,1751857841473,-502.91263907,0.00023273,2]
[370039675,1751857841483,-1000.0,0.00023273,2]
[370039677,1751857841492,-337.39892148,0.00023273,2]
[370039679,1751857841501,-5024.7,0.000233,7]
[370039681,1751857841512,-58689.44,0.000233,7]
[370039682,1751857841522,-207.4,0.0002331,2]
[370039683,1751857841531,-500.0,0.0002331,2]
[370039684,1751857841541,-500.0,0.0002331,2]
[370039685,1751857841550,-500.0,0.0002331,2]
[370039686,1751857841560,-1500.0,0.0002331,2]
[370039687,1751857841570,-500.0,0.0002331,2]
[370039688,1751857841579,-1500.0,0.0002331,2]
[370039689,1751857841751,-453.69972508,0.0002331,2]
[370039690,1751857841763,-1500.0,0.0002331,2]
[370039691,1751857841774,-1500.0,0.0002331,2]
[370039692,1751857841784,-1500.0,0.0002331,2]
[370039693,1751857841793,-1500.0,0.0002331,2]
[370039694,1751857841803,-1500.0,0.0002331,2]
[370039695,1751857841813,-1500.0,0.0002331,2]
[370039696,1751857841822,-1500.0,0.0002331,2]
[370039697,1751857841831,-1500.0,0.0002331,2]
[370039698,1751857841841,-1453.37609821,0.0002331,2]
[370039699,1751857841851,-5000.0,0.0002331,2]
[370039700,1751857841861,-4813.3118795,0.0002331,2]
[370039701,1751857841870,-581.15,0.00023338,2]
[370039702,1751857841880,-851.0,0.00023338,2]
[370039703,1751857841890,-460.0,0.00023375,2]
[370039704,1751857841899,-683.77,0.00023375,2]
[370039705,1751857841909,-249.80175684,0.00023384,2]
[370039706,1751857841918,-460.0,0.00023384,2]
[370039707,1751857841928,-159.737179,0.000234,8]
[370039708,1751857841937,-1317.09131739,0.00023417,9]
[370039709,1751857841947,-581.15,0.00023612,2]
[370039711,1751857841956,-851.0,0.00023612,2]
[370039712,1751857841966,-1317.09131739,0.00023624,9]
[370039713,1751857841976,-460.0,0.00023649,2]
[370039715,1751857841985,-683.77,0.00023649,2]
[370039716,1751857841996,-460.0,0.00023658,2]
[370039718,1751857842007,-159.4922776,0.00023699,2]
[370039719,1751857842017,-576.0368563,0.00023699,2]
[370039722,1751857842027,-159.4922776,0.00023699,2]
[370039723,1751857842036,-576.0368563,0.00023699,2]
[370039725,1751857842046,-576.0368563,0.00023699,2]
[370039727,1751857842055,-1000.0,0.00023821,2]
[370039730,1751857842066,-1200.0,0.00023821,2]
[370039731,1751857842075,-501.86266387,0.00023821,2]
[370039733,1751857842084,-1317.09131739,0.00023831,10]
[370039735,1751857842094,-5000.0,0.00023858,2]
[370039738,1751857842103,-36146.58135723,0.00023876,2]
[370039739,1751857842113,-581.15,0.00023886,2]
[370039742,1751857842123,-851.0,0.00023886,2]
[370039744,1751857842133,-1333.42369154,0.000239,2]
[370039746,1751857842142,-281.8375376,0.00023923,2]
[370039748,1751857842152,-683.77,0.00023923,2]
[370039750,1751857842161,-460.0,0.00023932,2]
[370039752,1751857842170,-3637.47131026,0.00023982,2]
[370039754,1751857842179,-151.0,0.00023992,7]
[370039756,1751857842188,-160.0,0.00024,7]
[370039758,1751857842198,-160.0,0.00024,10]
[370039759,1751857842207,-230.48668418,0.00024,7]
[370039761,1751857842217,-230.48668418,0.00024,10]
[370039764,1751857842226,-160.0,0.00024,7]
[370039765,1751857842236,-160.0,0.00024,10]
[370039766,1751857842246,-215.21338352,0.00024,7]
[370039768,1751857842256,-215.21338352,0.00024,10]
[370039769,1751857842265,-160.0,0.00024,7]
[370039770,1751857842274,-160.0,0.00024,10]
[370039771,1751857842284,-837.79946008,0.00024,7]
[370039772,1751857842294,-837.79946008,0.00024,10]
[370039773,1751857842303,-160.0,0.00024,7]
[370039775,1751857842313,-160.0,0.00024,10]
[370039777,1751857842322,-1317.09131739,0.00024038,10]
[370039780,1751857842331,-581.15,0.0002416,2]
[370039782,1751857842340,-851.0,0.0002416,2]
[370039784,1751857842350,-683.77,0.00024197,2]
[370039786,1751857842359,-176.54358326,0.00024206,2]
[370039788,1751857842368,-1317.09131739,0.00024245,10]
[370039790,1751857842378,-160.0,0.000243,7]
[370039792,1751857842387,-230.48668418,0.000243,7]
[370039794,1751857842396,-848.27993403,0.000243,7]
[370039795,1751857842406,-214.06929976,0.000243,7]
[370039797,1751857842415,-215.21338352,0.000243,7]
[370039800,1751857842426,-1500.0,0.00024368,2]
[370039802,1751857842435,-1800.0,0.00024368,2]
[370039804,1751857842445,-500.0,0.0002439,9]
[370039806,1751857842454,-503.98954517,0.0002439,9]
[370039808,1751857842465,-500.8130656,0.0002439,9]
[370039810,1751857842474,-5024.7,0.000244,7]
[370039812,1751857842483,-58689.44,0.000244,7]
[370039814,1751857842492,-5000.0,0.00024406,2]
[370039816,1751857842501,-585.9423344,0.00024411,2]
[370039818,1751857842511,-581.15,0.00024434,2]
[370039820,1751857842521,-851.0,0.00024434,2]
[370039822,1751857842530,-151.0,0.00024449,7]
[370039824,1751857842540,-2314.177802,0.00024451,4]
[370039826,1751857842549,-1317.09131739,0.00024452,11]
[370039828,1751857842558,-683.77,0.00024471,2]
[370039830,1751857842568,-168.0,0.00024526,2]
[370039832,1751857842577,-1151.912169,0.00024548,2]
[370039833,1751857842587,-823.0,0.00024604,2]
[370039836,1751857842597,-168.0,0.00024643,2]
[370039838,1751857842606,-4073.83336167,0.00024651,2]
[370039840,1751857842615,-67549.28180866,0.00024651,2]
[370039842,1751857842625,-300.0,0.00024657,4]
[370039844,1751857842635,-300.0,0.00024657,4]
[370039846,1751857842645,-300.0,0.00024657,4]
[370039848,1751857842654,-300.0,0.00024657,4]
[370039850,1751857842666,-300.0,0.00024657,4]
[370039852,1751857842675,-300.0,0.00024657,4]
[370039854,1751857842684,-327.85232221,0.00024657,4]
[370039856,1751857842693,-200.0,0.00024657,2]
[370039858,1751857842703,-210.00855503,0.00024657,2]
[370039860,1751857842712,-150.0,0.00024658,2]
[370039862,1751857842722,-380.0,0.00024658,2]
[370039864,1751857842731,-200.0,0.00024658,15]
[370039866,1751857842740,-466.0,0.00024658,2]
[370039868,1751857842749,-500.0,0.00024658,2]
[370039870,1751857842759,-500.0,0.00024658,2]
[370039872,1751857842769,-500.0,0.00024658,2]
[370039874,1751857842779,-500.0,0.00024658,2]
[370039876,1751857842789,-500.0,0.00024658,2]
[370039878,1751857842799,-466.33482191,0.00024658,2]
[370039880,1751857842808,-1317.09131739,0.00024659,11]
[370039882,1751857842817,-215.0738,0.00024679,2]
[370039884,1751857842826,-466.0,0.00024685,2]
[370039886,1751857842836,-581.15,0.00024708,2]
[370039888,1751857842845,-851.0,0.00024708,2]
[370039890,1751857842855,-466.0,0.00024713,2]
[370039892,1751857842864,-466.0,0.0002474,2]
[370039894,1751857842874,-683.77,0.00024745,2]
[370039896,1751857842883,-466.0,0.00024768,2]
[370039899,1751857842894,-772.7106827,0.00024768,2]
[370039901,1751857842904,-3087.75188806,0.00024768,2]
[370039903,1751857842913,-500.0,0.00024773,2]
[370039905,1751857842923,-466.0,0.00024795,2]
[370039907,1751857842932,-2000.0,0.000248,2]
[370039909,1751857842941,-2000.0,0.000248,2]
[370039911,1751857842951,-107863.29,0.000248,2]
[370039913,1751857842960,-112383.483436,0.000248,2]
[370039915,1751857842970,-173.43003758,0.000248,4]
[370039917,1751857842979,-173.43003758,0.000248,4]
[370039919,1751857842989,-173.43003758,0.000248,4]
[370039921,1751857843004,-173.43,0.000248,4]
[370039923,1751857843015,-161.86803507,0.000248,4]
[370039925,1751857843025,-161.86803507,0.000248,4]
[370039927,1751857843034,-161.86803507,0.000248,4]
[370039929,1751857843045,-161.86803507,0.000248,4]
[370039931,1751857843054,-161.86803507,0.000248,4]
[370039933,1751857843064,-161.86803507,0.000248,4]
[370039935,1751857843074,-161.86803507,0.000248,4]
[370039937,1751857843083,-161.86803507,0.000248,4]
[370039939,1751857843093,-161.86803507,0.000248,4]
[370039941,1751857843102,-161.86,0.000248,4]
[370039943,1751857843112,-175.21470796,0.000248,4]
[370039945,1751857843121,-175.21,0.000248,4]
[370039948,1751857843131,-466.0,0.00024822,2]
[370039950,1751857843140,-238.40868167,0.00024831,7]
[370039952,1751857843150,-155.3900479,0.00024836,2]
[370039954,1751857843160,-1849.790396,0.0002484,5]
[370039956,1751857843170,-466.0,0.0002485,2]
[370039958,1751857843179,-1000.0,0.0002486,5]
[370039960,1751857843190,-1317.09131739,0.00024866,12]
[370039962,1751857843199,-6243.52685757,0.0002487,2]
[370039964,1751857843209,-168.0,0.00024874,2]
[370039966,1751857843218,-466.0,0.00024877,2]
[370039968,1751857843228,-1000.0,0.0002488,5]
[370039970,1751857843237,-238011.9546,0.00024899,4]
[370039972,1751857843246,-151.535863,0.000249,7]
[370039974,1751857843255,-151.0,0.000249,7]
[370039976,1751857843265,-151.0,0.000249,7]
[370039978,1751857843274,-2000.0,0.000249,2]
[370039980,1751857843284,-2000.0,0.000249,2]
[370039982,1751857843293,-151.0,0.000249,7]
[370039984,1751857843302,-1000.0,0.000249,5]
[370039986,1751857843311,-302056.64335598,0.000249,2]
[370040022,1751857843646,-469.71743729,0.000249,2]
[370040024,1751857843667,-2735.0,0.000249,2]
[370040026,1751857844196,-105.10923794,0.000249,2]
[370040031,1751858129050,266.631629,0.00013699,2]
[370040032,1751858363777,420.0,0.000168,2]
[370040037,1751858683313,-158.4270981,0.00017187,2]
[370040038,1751858683337,-95.0309211,0.00017188,2]
[370040039,1751858687280,-188.2811958,0.00017188,2]
[370040045,1751858816113,-153.60284802,0.00018085,2]
[370040046,1751858843094,-300.0,0.00018183,2]
[370040047,1751858843120,-500.0,0.00018184,2]
[370040048,1751858843146,-500.0,0.00018184,2]
[370040049,1751858843170,-500.0,0.00018184,2]
[370040050,1751858843195,-457.48682161,0.00018184,2]
[370040059,1751858915645,149446.1045789,0.00016209,2]
[370040060,1751858943081,-300.79080626,0.00017,2]
[370040061,1751858966374,-347.32571007,0.00017,2]
[370040062,1751858967126,-84.33887579,0.00017,2]
[370040063,1751858967147,-300.0,0.00018182,2]
[370040064,1751858967168,-500.0,0.00018183,2]
[370040065,1751858967189,-500.0,0.00018183,2]
[370040066,1751858967208,-500.0,0.00018183,2]
[370040067,1751858967227,-500.0,0.00018183,2]
[370040068,1751858967247,-500.0,0.00018183,2]
[370040069,1751858967268,-500.0,0.00018183,2]
[370040070,1751858967290,-500.0,0.00018183,2]
[370040071,1751858967309,-236.79516508,0.00018183,2]
[370040072,1751858967330,-500.0,0.00018183,2]
[370040073,1751858967349,-500.0,0.00018183,2]
[370040074,1751858967369,-500.0,0.00018183,2]
[370040075,1751858967390,-474.34948991,0.00018183,2]
[370040076,1751858967412,-500.0,0.00018183,2]
[370040077,1751858967433,-501.5683492,0.00018183,2]
[370040078,1751858967453,-500.0,0.00018183,2]
[370040079,1751858967475,-427.39248719,0.00018183,2]
[370040080,1751858967494,-500.0,0.00018183,2]
[370040081,1751858967515,-500.0,0.00018183,2]
[370040082,1751858967536,-500.0,0.00018183,2]
[370040083,1751858967557,-500.0,0.00018183,2]
[370040084,1751858967577,-500.0,0.00018183,2]
[370040085,1751858967598,-500.0,0.00018183,2]
[370040086,1751858967619,-500.0,0.00018183,2]
[370040087,1751858967640,-500.0,0.00018183,2]
[370040088,1751858967660,-500.0,0.00018183,2]
[370040089,1751858967680,-500.0,0.00018183,2]
[370040090,1751858967699,-500.0,0.00018183,2]
[370040091,1751858967720,-500.0,0.00018183,2]
[370040092,1751858967740,-500.0,0.00018183,2]
[370040093,1751858967761,-500.0,0.00018183,2]
[370040094,1751858967781,-500.0,0.00018183,2]
[370040095,1751858967802,-500.0,0.00018183,2]
[370040096,1751858967822,-500.0,0.00018183,2]
[370040097,1751858967842,-500.0,0.00018183,2]
[370040098,1751858967862,-352.10155246,0.00018183,2]
[370040099,1751858967883,-500.0,0.00018183,2]
[370040100,1751858967907,-500.0,0.00018183,2]
[370040101,1751858967927,-500.0,0.00018183,2]
[370040102,1751858967948,-351.73936435,0.00018183,2]
[370040103,1751858967969,-500.0,0.00018183,2]
[370040104,1751858967991,-500.0,0.00018183,2]
[370040105,1751858968012,-500.0,0.00018183,2]
[370040106,1751858968035,-500.0,0.00018183,2]
[370040107,1751858968056,-500.0,0.00018183,2]
[370040108,1751858968076,-500.0,0.00018183,2]
[370040109,1751858968095,-500.0,0.00018183,2]
[370040110,1751858968118,-500.0,0.00018183,2]
[370040111,1751858968138,-509.27928457,0.00018183,2]
[370040112,1751858968159,-500.0,0.00018183,2]
[370040113,1751858968180,-500.0,0.00018183,2]
[370040114,1751858968201,-500.0,0.00018183,2]
[370040115,1751858968222,-500.0,0.00018183,2]
[370040116,1751858968243,-500.0,0.00018183,2]
[370040117,1751858968265,-500.0,0.00018183,2]
[370040118,1751858968286,-500.0,0.00018183,2]
[370040119,1751858968306,-500.0,0.00018183,2]
[370040120,1751858968327,-500.0,0.00018183,2]
[370040121,1751858968348,-500.0,0.00018183,2]
[370040122,1751858968371,-500.0,0.00018183,2]
[370040123,1751858968393,-30.59041568,0.00018183,2]
[370040124,1751858970370,-469.40958432,0.00018183,2]
[370040125,1751858970392,-500.0,0.00018183,2]
[370040126,1751858970413,-500.0,0.00018183,2]
[370040127,1751858970432,-500.0,0.00018183,2]
[370040128,1751858970456,-500.0,0.00018183,2]
[370040129,1751858970476,-500.0,0.00018183,2]
[370040130,1751858970501,-500.0,0.00018183,2]
[370040131,1751858970521,-500.0,0.00018183,2]
[370040132,1751858970543,-500.0,0.00018183,2]
[370040133,1751858970565,-391.75410616,0.00018183,2]
[370040134,1751858970588,-500.0,0.00018183,2]
[370040135,1751858970609,-500.0,0.00018183,2]
[370040136,1751858970764,-500.0,0.00018183,2]
[370040137,1751858970787,-500.0,0.00018183,2]
[370040138,1751858970807,-500.0,0.00018183,2]
[370040139,1751858970829,-500.0,0.00018183,2]
[370040140,1751858970853,-500.0,0.00018183,2]
[370040141,1751858970872,-500.0,0.00018183,2]
[370040142,1751858970894,-500.0,0.00018183,2]
[370040143,1751858970919,-500.0,0.00018183,2]
[370040144,1751858970940,-500.0,0.00018183,2]
[370040145,1751858970969,-500.0,0.00018183,2]
[370040146,1751858970992,-500.0,0.00018183,2]
[370040147,1751858971012,-500.0,0.00018183,2]
[370040148,1751858971032,-500.0,0.00018183,2]
[370040149,1751858971055,-500.0,0.00018183,2]
[370040150,1751858971079,-500.0,0.00018183,2]
[370040151,1751858971099,-500.0,0.00018183,2]
[370040152,1751858971119,-500.0,0.00018183,2]
[370040153,1751858971141,-500.0,0.00018183,2]
[370040154,1751858971162,-500.0,0.00018183,2]
[370040155,1751858971182,-500.0,0.00018183,2]
[370040156,1751858971201,-500.0,0.00018183,2]
[370040157,1751858971222,-500.0,0.00018183,2]
[370040158,1751858971241,-500.0,0.00018183,2]
[370040159,1751858971263,-500.0,0.00018183,2]
[370040160,1751858971283,-500.0,0.00018183,2]
[370040161,1751858971304,-644.2253319,0.00018183,2]
[370040162,1751858971323,-500.0,0.00018183,2]
[370040163,1751858971343,-500.0,0.00018183,2]
[370040164,1751858971364,-500.0,0.00018183,2]
[370040165,1751858971384,-500.0,0.00018183,2]
[370040166,1751858971404,-500.0,0.00018183,2]
[370040167,1751858971423,-500.0,0.00018183,2]
[370040168,1751858971442,-500.0,0.00018183,2]
[370040169,1751858971462,-500.0,0.00018183,2]
[370040170,1751858971482,-500.0,0.00018183,2]
[370040171,1751858971501,-500.0,0.00018183,2]
[370040172,1751858971520,-500.0,0.00018183,2]
[370040173,1751858971541,-500.0,0.00018183,2]
[370040174,1751858971561,-500.0,0.00018183,2]
[370040175,1751858971580,-500.0,0.00018183,2]
[370040176,1751858971601,-500.0,0.00018183,2]
[370040177,1751858971624,-500.0,0.00018183,2]
[370040178,1751858971644,-500.0,0.00018183,2]
[370040179,1751858971665,-500.0,0.00018183,2]
[370040180,1751858971690,-500.0,0.00018183,2]
[370040181,1751858971712,-499.99999999,0.00018183,2]
[370040182,1751858971732,-500.0,0.00018183,2]
[370040183,1751858971753,-500.0,0.00018183,2]
[370040184,1751858971773,-449.99999999,0.00018183,2]
[370040185,1751858971795,-499.99999999,0.00018183,2]
[370040186,1751858971816,-500.0,0.00018183,2]
[370040187,1751858971838,-500.0,0.00018183,2]
[370040188,1751858971859,-500.0,0.00018183,2]
[370040189,1751858971880,-500.0,0.00018183,2]
[370040190,1751858971904,-500.0,0.00018183,2]
[370040191,1751858971926,-500.0,0.00018183,2]
[370040192,1751858971948,-500.0,0.00018183,2]
[370040193,1751858971969,-499.99999999,0.00018183,2]
[370040194,1751858971989,-314.68582686,0.00018183,2]
[370040195,1751858972013,-460.0,0.00018183,2]
[370040196,1751858972034,-460.0,0.00018185,2]
[370040197,1751858972055,-460.0,0.00018185,2]
[370040198,1751858972075,-460.0,0.00018185,2]
[370040199,1751858972093,-460.0,0.00018186,2]
[370040200,1751858972112,-460.0,0.00018186,2]
[370040201,1751858972132,-460.0,0.00018186,2]
[370040202,1751858972152,-451.2,0.00018186,2]
[370040203,1751858972174,-460.0,0.00018186,2]
[370040204,1751858972195,-460.0,0.00018186,2]
[370040205,1751858972217,-460.0,0.00018186,2]
[370040206,1751858972237,-305.65102217,0.00018186,2]
[370040207,1751858972259,-460.0,0.00018186,2]
[370040208,1751858972280,-460.0,0.00018187,2]
[370040209,1751858972300,-463.47433689,0.00018187,2]
[370040210,1751858972320,-460.0,0.00018187,2]
[370040211,1751858972341,-460.0,0.00018187,2]
[370040212,1751858972362,-460.0,0.00018187,2]
[370040213,1751858972382,-577.95,0.00018187,2]
[370040214,1751858972402,-460.0,0.00018187,2]
[370040215,1751858972421,-460.0,0.00018187,2]
[370040216,1751858972441,-460.0,0.00018187,2]
[370040217,1751858972460,-460.0,0.00018187,2]
[370040218,1751858972480,-460.0,0.00018187,2]
[370040219,1751858972499,-460.0,0.00018187,2]
[370040220,1751858972521,-163.88685439,0.00018187,2]
[370040221,1751858973169,-296.11314561,0.00018187,2]
[370040222,1751858973191,-460.0,0.00018187,2]
[370040223,1751858973212,-500.0,0.00018187,2]
[370040224,1751858973234,-500.0,0.00018187,2]
[370040225,1751858973256,-460.0,0.00018187,2]
[370040226,1751858973280,-460.0,0.00018187,2]
[370040227,1751858973302,-460.0,0.00018187,2]
[370040228,1751858973325,-460.0,0.00018187,2]
[370040229,1751858973346,-460.0,0.00018187,2]
[370040230,1751858973368,-460.0,0.00018187,2]
[370040231,1751858973389,-439.0,0.00018187,2]
[370040232,1751858973410,-460.0,0.00018187,2]
[370040233,1751858973431,-573.67839057,0.00018187,2]
[370040234,1751858973452,-499.1,0.00018187,2]
[370040235,1751858973475,-460.0,0.00018187,2]
[370040236,1751858973498,-500.0,0.00018187,2]
[370040237,1751858973519,-460.0,0.00018187,2]
[370040238,1751858973540,-460.0,0.00018187,2]
[370040239,1751858973565,-460.0,0.00018187,2]
[370040240,1751858973586,-507.49,0.00018187,2]
[370040241,1751858973608,-461.17144793,0.00018187,2]
[370040242,1751858973629,-500.02727843,0.00018189,2]
[370040243,1751858973649,-461.15065777,0.00018189,2]
[370040244,1751858973668,-462.31020279,0.00018189,2]
[370040245,1751858973688,-460.0,0.00018189,2]
[370040246,1751858973708,-460.0,0.00018189,2]
[370040247,1751858973729,-466.03728526,0.00018189,2]
[370040248,1751858973751,-500.0,0.00018189,2]
[370040249,1751858973772,-24900.0,0.0001819,2]
[370040250,1751858973795,-460.0,0.00018457,2]
[370040251,1751858973817,-460.0,0.00018459,2]
[370040252,1751858973840,-460.0,0.00018459,2]
[370040253,1751858973860,-460.0,0.00018459,2]
[370040254,1751858973882,-460.0,0.0001846,2]
[370040255,1751858973906,-460.0,0.0001846,2]
[370040256,1751858973927,-460.0,0.0001846,2]
[370040257,1751858973951,-460.0,0.0001846,2]
[370040258,1751858973977,-460.0,0.0001846,2]
[370040259,1751858974000,-249.33,0.00018461,2]
[370040260,1751858974023,-460.0,0.00018461,2]
[370040261,1751858974045,-460.0,0.00018461,2]
[370040262,1751858974066,-482.08,0.00018461,2]
[370040263,1751858974212,-161.4,0.00018461,2]
[370040264,1751858974235,-408.17,0.00018461,2]
[370040265,1751858974255,-392.67,0.00018461,2]
[370040266,1751858974275,-404.82723959,0.00018461,2]
[370040320,1751859032173,-578.67,0.00018183,2]
[370040322,1751859032183,-460.0,0.00018185,2]
[370040324,1751859032192,-234.23,0.00018187,2]
[370040326,1751859032201,-458.62893706,0.00018187,2]
[370040328,1751859032210,-304.4,0.00018187,2]
[370040330,1751859032219,-369.18350594,0.00018187,2]
[370040332,1751859032229,-460.0,0.00018187,2]
[370040334,1751859032237,-460.0,0.00018459,2]
[370040337,1751859032247,-55.17276041,0.00018461,2]
[370040340,1751859032256,-150.28,0.00018461,2]
[370040343,1751859032265,-258.31,0.00018461,2]
[370040346,1751859032275,-460.0,0.00018461,2]
[370040349,1751859032284,-987.80964445,0.00018545,2]
[370040351,1751859032294,-186.96351857,0.000186,2]
[370040353,1751859032303,-460.0,0.00018731,2]
[370040354,1751859032312,-300.0,0.00018732,2]
[370040356,1751859032322,-460.0,0.00018733,2]
[370040358,1751859032332,-460.0,0.00018733,2]
[370040360,1751859032341,-460.0,0.00018733,2]
[370040362,1751859032350,-460.0,0.00018733,2]
[370040364,1751859032359,-460.0,0.00018734,2]
[370040366,1751859032369,-460.0,0.00018734,2]
[370040367,1751859032378,-460.0,0.00018734,2]
[370040368,1751859032388,-460.0,0.00018734,2]